fUSD/lending_fUSD_20250820
["ID","MTS","AMOUNT","RATE_DAILY","PERIOD"]
[380331911,1755690614444,-15000.0,0.00011,2]
[380331912,1755690614902,-15000.0,0.00011,2]
[380331913,1755690615503,-15000.0,0.00011,2]
[380331914,1755690615887,-4347.41316787,0.00010999,2]
[380331915,1755690615911,-10652.58683213,0.00011,2]
[380331916,1755690616491,-15000.0,0.00011,2]
[380331917,1755690617455,-15000.0,0.00011,2]
[380331918,1755690620408,-15000.0,0.00011,2]
[380331919,1755690623185,-15000.0,0.00011,2]
[380331957,1755690632634,-16456.61623079,0.00011,2]
[380331959,1755690632643,-45399.52069859,0.00011,2]
[380331961,1755690632655,-653.68109119,0.00011,2]
[380331963,1755690632666,-834.98957114,0.00011,2]
[380331967,1755690632691,-1694.97025864,0.00011,2]
[380331969,1755690632706,-635.41882572,0.00011,2]
[380331971,1755690632717,-2344.59989811,0.00011,2]
[380331974,1755690632729,-509.57288024,0.00011,2]
[380331976,1755690632740,-476.35554292,0.00011,2]
[380331979,1755690632761,-1724.76840754,0.00011,2]
[380331981,1755690632773,-2515.01552906,0.00011,2]
[380331985,1755690632794,-546.70376479,0.00011,2]
[380331987,1755690632805,-6331.21059632,0.00011,2]
[380331991,1755690633266,-3967.02168734,0.00011,2]
[380331996,1755690637969,-281.55,0.00011,2]
[380331997,1755690638182,-6442.83541837,0.00011,2]
[380332032,1755690639927,-625.34,0.00011,2]
[380332033,1755690639982,-1936.09744314,0.00011,2]
[380332034,1755690639992,-935.91927697,0.00011,2]
[380332035,1755690640004,-5675.0,0.00011,2]
[380332036,1755690640019,-302.2027,0.00011,2]
[380332037,1755690640031,-7280.48960544,0.00011,2]
[380332038,1755690640059,-507.46219798,0.00011,2]
[380332039,1755690640091,-35112.21610121,0.00011,2]
[380332040,1755690640105,-142634.9101184,0.00011,2]
[380332041,1755690640114,-151.0,0.00011,2]
[380332042,1755690640124,-201614.07929488,0.00011,2]
[380332050,1755690641812,-17570.93282004,0.00011,2]
[380332074,1755690644201,-842.92918201,0.00011,2]
[380332075,1755690644212,-1892.60661799,0.00011,2]
[380332076,1755690644236,-12518.4,0.00011,2]
[380332077,1755690644252,-343.4,0.00011,2]
[380332078,1755690644302,-300.0,0.00011,2]
[380332079,1755690644313,-962.5,0.00011,2]
[380332084,1755690645971,-1018.72594151,0.00011,2]
[380332085,1755690646082,-12495.48299998,0.00011,2]
[380332086,1755690646241,-1614.49000183,0.00011,2]
[380332087,1755690646298,-11497.0,0.00011,2]
[380332089,1755690680458,-236.30861565,0.0001075,2]
[380332090,1755690729296,500.0,9.992e-05,2]
[380332091,1755690823697,416.63747281,9.976e-05,2]
[380332092,1755691014610,150.0,0.000221,120]
[380332093,1755691060402,83.36252719,9.951e-05,2]
[380332094,1755691062729,-165.03747281,9.951e-05,2]
[380332095,1755691077932,-464.83619766,9.951e-05,2]
[380332096,1755691082148,-153.44,9.951e-05,2]
[380332097,1755691083964,-198.0,9.951e-05,2]
[380332098,1755691110961,-151.0,9.951e-05,2]
[380332099,1755691112633,-271.9676938,9.951e-05,2]
[380332100,1755691114273,-228.0323062,9.951e-05,2]
[380332101,1755691117064,-216.03,9.951e-05,2]
[380332102,1755691120573,-151.0,9.951e-05,2]
[380332103,1755691123950,-349.0,9.951e-05,2]
[380332104,1755691126266,-151.0,9.951e-05,2]
[380332105,1755691131302,-287.471533,9.951e-05,2]
[380332106,1755691133656,-365.968467,9.951e-05,2]
[380332107,1755691136242,170.0,9.934e-05,7]
[380332108,1755691208605,220.0,0.0002465,120]
[380332109,1755691228912,220.0,0.0002465,120]
[380332110,1755691231230,-156.72,9.935e-05,2]
[380332111,1755691231255,-72.22499673,9.949e-05,2]
[380332115,1755691378917,-301.0,9.731e-05,2]
[380332116,1755691384140,-151.0,9.731e-05,2]
[380332117,1755691400470,-94.94,9.731e-05,2]
[380332118,1755691441009,-280.733598,9.731e-05,2]
[380332119,1755691442617,-205.89,9.731e-05,2]
[380332120,1755691445446,-200.471303,9.731e-05,2]
[380332121,1755691448595,-66.245099,9.731e-05,2]
[380332122,1755691550545,-151.0,9.736e-05,2]
[380332123,1755691552556,-201.29,9.736e-05,2]
[380332124,1755691611546,-84.49500327,9.949e-05,2]
[380332125,1755691611574,-300.0,9.949e-05,2]
[380332126,1755691611600,-300.0,9.95e-05,2]
[380332127,1755691611627,-1200.0,9.95e-05,2]
[380332128,1755691611656,-300.0,9.95e-05,2]
[380332129,1755691611682,-150.0,9.95e-05,2]
[380332130,1755691611711,-867.0,9.95e-05,2]
[380332131,1755691611829,-11167.9428135,9.951e-05,2]
[380332133,1755691620165,-399.78,9.785e-05,2]
[380332134,1755691693021,-182.218467,9.681e-05,2]
[380332135,1755691695102,-153.44,9.681e-05,2]
[380332136,1755691698623,-151.0,9.681e-05,2]
[380332137,1755691700172,-153.44,9.681e-05,2]
[380332138,1755691702309,-221.60394059,9.681e-05,2]
[380332139,1755691705011,-500.0,9.681e-05,2]
[380332140,1755691707029,-167.02759241,9.681e-05,2]
[380332141,1755691746684,-180.97240759,9.659e-05,2]
[380332142,1755691754711,150.0,9.472e-05,2]
[380332143,1755691783929,159.81,9.5e-05,2]
[380332144,1755691804259,1000.0,9.471e-05,2]
[380332145,1755691805819,-69.02759241,9.659e-05,2]
[380332146,1755691805843,-82.97240759,9.659e-05,2]
[380332147,1755691808880,-188.39907525,9.659e-05,2]
[380332148,1755691808904,-269.98358875,9.804e-05,2]
[380332149,1755691812134,-30.01641125,9.804e-05,2]
[380332150,1755691812157,-300.0,9.893e-05,2]
[380332156,1755691832186,-300.0,9.95e-05,2]
[380332157,1755691832196,-300.0,9.95e-05,2]
[380332158,1755691832207,-25.22875429,9.95e-05,2]
[380332159,1755691832315,-1174.77124571,9.95e-05,2]
[380332160,1755691832325,-801.09137538,9.951e-05,2]
[380332161,1755691832349,-18528.19961346,9.951e-05,2]
[380332162,1755691832358,-300.0,9.952e-05,2]
[380332163,1755691832369,-156.72,9.963e-05,2]
[380332164,1755691832378,-156.72,9.977e-05,2]
[380332165,1755691832387,-156.72,9.991e-05,2]
[380332166,1755691832397,-500.0,0.0001,2]
[380332167,1755691832407,-151.0,0.0001,2]
[380332168,1755691832417,-151.0,0.0001,2]
[380332169,1755691832426,-67.24724676,0.00010005,2]
[380332170,1755691832438,-89.47275324,0.00010005,2]
[380332171,1755691832447,-156.72,0.0001002,2]
[380332172,1755691832457,-156.72,0.00010034,2]
[380332173,1755691832467,-169.9,0.00010045,2]
[380332174,1755691832477,-156.72,0.00010048,2]
[380332175,1755691832486,-500.0,0.00010055,2]
[380332176,1755691832497,-156.72,0.00010062,2]
[380332177,1755691832507,-629.88,0.00010076,2]
[380332179,1755691832517,-156.72,0.00010076,2]
[380332181,1755691832527,-500.0,0.0001011,2]
[380332182,1755691832537,-500.0,0.00010165,2]
[380332183,1755691832547,-277.0,0.00010214,2]
[380332184,1755691832556,-704.0,0.00010214,2]
[380332186,1755691832566,-500.0,0.0001022,2]
[380332188,1755691832575,-165.38,0.00010233,2]
[380332190,1755691832585,-500.0,0.00010275,2]
[380332192,1755691832595,-527.79811006,0.0001033,2]
[380332194,1755691832605,-319.1920755,0.00010386,2]
[380332196,1755691832617,-150.0,0.00010386,2]
[380332197,1755691832627,-1056.0,0.00010408,2]
[380332199,1755691832636,-160.0,0.00010449,2]
[380332202,1755691832646,-151.0,0.00010449,2]
[380332204,1755691832656,-721.12765535,0.00010449,2]
[380332205,1755691832666,-300.0,0.00010449,2]
[380332207,1755691832676,-277.35679052,0.00010449,2]
[380332209,1755691832686,-499.99,0.00010475,2]
[380332212,1755691832696,-4841.09,0.00010475,2]
[380332215,1755691832706,-150.99,0.00010475,2]
[380332217,1755691832716,-7270.74,0.00010475,2]
[380332219,1755691832731,-299.99,0.00010475,2]
[380332221,1755691832740,-22315.85,0.00010475,2]
[380332223,1755691832750,-3604.45,0.00010475,2]
[380332225,1755691832759,-1568.18,0.00010475,2]
[380332227,1755691832769,-168.54,0.00010549,2]
[380332229,1755691832779,-300.0,0.00010625,2]
[380332231,1755691832788,-250.0,0.00010625,2]
[380332233,1755691832798,-150.0,0.00010625,2]
[380332235,1755691832808,-1000.0,0.00010654,2]
[380332237,1755691832817,-740.9909,0.00010712,2]
[380332239,1755691832826,-1000.0,0.00010715,2]
[380332241,1755691832835,-1000.0,0.00010732,2]
[380332243,1755691832845,-1425.0,0.00010738,2]
[380332245,1755691832855,-440.14600427,0.00010778,2]
[380332247,1755691832865,-1000.0,0.00010798,2]
[380332249,1755691832875,-150.0,0.00010806,2]
[380332253,1755691833413,-1425.0,0.00010813,2]
[380332254,1755691833447,-1425.0,0.00010822,2]
[380332255,1755691833456,-1275.0,0.0001084,2]
[380332256,1755691833466,-150.0,0.0001085,2]
[380332257,1755691833475,-150.0,0.00010855,2]
[380332258,1755691833486,-400.0,0.00010856,2]
[380332259,1755691833495,-1015.38361294,0.00010883,2]
[380332260,1755691833505,-275.7207,0.00010886,2]
[380332261,1755691833514,-2862.883,0.00010886,2]
[380332262,1755691833524,-4488.4518,0.00010886,2]
[380332263,1755691833534,-236.6841,0.00010886,2]
[380332264,1755691833545,-587.77277,0.0001089,2]
[380332265,1755691833554,-151.6106956,0.00010899,2]
[380332266,1755691833564,-182.82390782,0.00010899,2]
[380332267,1755691833574,-1000.0,0.00010899,2]
[380332268,1755691833583,-68216.34019168,0.00010899,2]
[380332269,1755691833600,-719.22428738,0.00010899,2]
[380332270,1755691833616,-51331.28072094,0.00010899,2]
[380332271,1755691833626,-2500.0,0.00010899,2]
[380332272,1755691833636,-3951.8303,0.000109,2]
[380332273,1755691833646,-1000.0,0.000109,2]
[380332274,1755691833655,-1830.86382108,0.000109,2]
[380332275,1755691833666,-1830.86382108,0.000109,2]
[380332276,1755691833675,-2420.3961,0.000109,2]
[380332277,1755691833685,-500.0,0.000109,2]
[380332278,1755691833694,-509.22989312,0.000109,2]
[380332279,1755691833704,-150.0,0.000109,2]
[380332280,1755691833713,-258.81180816,0.000109,2]
[380332281,1755691833726,-150.0,0.000109,2]
[380332282,1755691833735,-150.0,0.000109,2]
[380332283,1755691833744,-150.0,0.000109,2]
[380332284,1755691833754,-500.0,0.000109,2]
[380332285,1755691833763,-150.0,0.000109,2]
[380332286,1755691833772,-277.50321534,0.000109,2]
[380332287,1755691833782,-587.77278,0.0001091,2]
[380332288,1755691833792,-327.90692021,0.00010924,2]
[380332289,1755691833801,-150.0,0.00010928,2]
[380332290,1755691833811,-150.0,0.00010928,2]
[380332291,1755691833822,-150.0,0.00010928,2]
[380332292,1755691833833,-500.0,0.00010928,2]
[380332293,1755691833842,-150.0,0.00010928,2]
[380332294,1755691833852,-150.0,0.00010928,2]
[380332295,1755691833862,-150.0,0.00010928,2]
[380332296,1755691833875,-150.0,0.00010928,2]
[380332297,1755691833886,-150.16475305,0.00010928,2]
[380332298,1755691833895,-446.0,0.00010928,2]
[380332299,1755691833905,-150.0,0.00010928,2]
[380332300,1755691833915,-150.0,0.00010928,2]
[380332301,1755691833925,-150.0,0.00010928,2]
[380332302,1755691833936,-150.0,0.00010928,2]
[380332303,1755691833946,-150.0,0.00010928,2]
[380332304,1755691833956,-150.0,0.00010928,2]
[380332305,1755691833966,-150.0,0.00010928,2]
[380332306,1755691833976,-587.77277,0.0001094,2]
[380332307,1755691833986,-250.0,0.00010944,2]
[380332308,1755691833996,-1425.0,0.00010945,2]
[380332309,1755691834006,-420.0,0.00010945,2]
[380332310,1755691834016,-1680.0,0.00010945,2]
[380332311,1755691834025,-300.0,0.00010947,2]
[380332312,1755691834035,-250.0,0.00010947,2]
[380332313,1755691834045,-150.0,0.00010947,2]
[380332314,1755691834054,-2500.0,0.00010947,2]
[380332315,1755691834064,-150.0,0.00010953,2]
[380332316,1755691834074,-200.0,0.00010959,2]
[380332317,1755691834083,-150.0,0.00010959,2]
[380332318,1755691834094,-150.0,0.00010959,2]
[380332319,1755691834104,-28097.0,0.00010959,2]
[380332320,1755691834113,-500.0,0.00010973,2]
[380332321,1755691834123,-341.93999063,0.00010973,2]
[380332322,1755691834132,-500.0,0.00010973,2]
[380332323,1755691834142,-500.0,0.00010973,2]
[380332324,1755691834152,-500.0,0.00010973,2]
[380332325,1755691834162,-500.0,0.00010973,2]
[380332326,1755691834172,-500.0,0.00010973,2]
[380332327,1755691834182,-500.0,0.00010973,2]
[380332328,1755691834191,-500.0,0.00010973,2]
[380332329,1755691834202,-200.0,0.0001099,2]
[380332330,1755691834212,-2525.72121121,0.0001099,2]
[380332331,1755691834222,-2308.78810105,0.00010991,2]
[380332332,1755691834232,-167.5701219,0.00010992,2]
[380332333,1755691834243,-424.9677908,0.00010992,2]
[380332334,1755691834252,-2091.85499088,0.00010992,2]
[380332335,1755691834262,-1874.92188072,0.00010993,2]
[380332336,1755691834272,-1657.98877055,0.00010994,2]
[380332337,1755691834283,-1441.05566039,0.00010995,2]
[380332338,1755691834292,-1224.12255022,0.00010996,2]
[380332339,1755691834302,-1007.18944005,0.00010997,2]
[380332340,1755691834312,-3000.0,0.00010998,2]
[380332341,1755691834322,-790.25632989,0.00010998,2]
[380332342,1755691834332,-232956.17793345,0.00010999,2]
[380332348,1755691838380,-500.0,0.00010958,2]
[380332350,1755691838390,-355.55730556,0.00010958,2]
[380332352,1755691838402,-144.44269444,0.00010958,2]
[380332353,1755691838411,-500.0,0.00010958,2]
[380332354,1755691838420,-439.27684354,0.00010958,2]
[380332355,1755691838430,-306.23626857,0.00010958,2]
[380332357,1755691838439,-500.0,0.00010958,2]
[380332358,1755691838449,-500.0,0.00010958,2]
[380332359,1755691838458,-649.2616153,0.00010958,2]
[380332360,1755691838468,-436.34294152,0.00010989,2]
[380332361,1755691838477,-436.34294152,0.0001099,2]
[380332362,1755691838486,-436.34294152,0.0001099,2]
[380332364,1755691838495,-2793549.72353778,0.00010999,2]
[380332366,1755691838505,-1245.50451814,0.00010999,2]
[380332368,1755691838514,-5000.06,0.00010999,2]
[380332370,1755691838523,-155.0,0.00010999,2]
[380332371,1755691838532,-500.0,0.00010999,2]
[380332373,1755691838542,-2000.0,0.00010999,2]
[380332375,1755691838551,-2000.0,0.00010999,2]
[380332377,1755691838560,-2000.0,0.00010999,2]
[380332380,1755691838570,-150.0,0.00010999,2]
[380332381,1755691838579,-666.0,0.00010999,2]
[380332382,1755691838589,-666.0,0.00010999,2]
[380332383,1755691838598,-151.0,0.00011,2]
[380332384,1755691838607,-201.09549266,0.00011,2]
[380332385,1755691838616,-811418.11588242,0.00011,2]
[380332386,1755691838628,-319452.68851583,0.00011,2]
[380332387,1755691838637,-232990.50652424,0.00011,2]
[380332388,1755691838646,-1051.2292422,0.00011,2]
[380332389,1755691838656,-173203.38,0.00011,2]
[380332390,1755691838665,-151.0,0.00011,2]
[380332391,1755691838675,-151.0,0.00011,2]
[380332392,1755691838684,-200.0,0.00011,2]
[380332393,1755691838693,-151.0,0.00011,2]
[380332394,1755691838703,-151.0,0.00011,2]
[380332395,1755691838712,-151.0,0.00011,2]
[380332396,1755691838722,-151.0,0.00011,2]
[380332397,1755691838734,-186.609115,0.00011,2]
[380332398,1755691838744,-151.300902,0.00011,2]
[380332399,1755691838753,-151.0,0.00011,2]
[380332400,1755691838763,-151.0,0.00011,2]
[380332401,1755691838773,-151.0,0.00011,2]
[380332402,1755691838782,-269.577583,0.00011,2]
[380332403,1755691838791,-217.94026462,0.00011,2]
[380332404,1755691838803,-151.0,0.00011,2]
[380332405,1755691838813,-151.0,0.00011,2]
[380332406,1755691838822,-151.0,0.00011,2]
[380332407,1755691838831,-151.0,0.00011,2]
[380332408,1755691838840,-151.0,0.00011,2]
[380332409,1755691838850,-237.387461,0.00011,2]
[380332410,1755691838859,-151.0,0.00011,2]
[380332411,1755691838872,-151.0,0.00011,2]
[380332412,1755691838881,-151.140946,0.00011,2]
[380332413,1755691838891,-151.0,0.00011,2]
[380332414,1755691838900,-151.0,0.00011,2]
[380332415,1755691838910,-151.0,0.00011,2]
[380332416,1755691838919,-153.417,0.00011,2]
[380332417,1755691838929,-151.0,0.00011,2]
[380332418,1755691838938,-247.85332,0.00011,2]
[380332419,1755691838947,-151.0,0.00011,2]
[380332420,1755691838957,-240.864153,0.00011,2]
[380332421,1755691838966,-151.0,0.00011,2]
[380332422,1755691838976,-151.0,0.00011,2]
[380332423,1755691838986,-151.0,0.00011,2]
[380332424,1755691838995,-151.0,0.00011,2]
[380332425,1755691839004,-151.0,0.00011,2]
[380332426,1755691839014,-151.0,0.00011,2]
[380332427,1755691839023,-151.0,0.00011,2]
[380332428,1755691839033,-151.0,0.00011,2]
[380332429,1755691839043,-151.0,0.00011,2]
[380332430,1755691839052,-151.0,0.00011,2]
[380332431,1755691839062,-151.0,0.00011,2]
[380332432,1755691839081,-151.0,0.00011,2]
[380332433,1755691839091,-151.0,0.00011,2]
[380332434,1755691839100,-151.0,0.00011,2]
[380332435,1755691839110,-151.0,0.00011,2]
[380332436,1755691839121,-151.995471,0.00011,2]
[380332437,1755691839131,-151.0,0.00011,2]
[380332438,1755691839141,-151.0,0.00011,2]
[380332439,1755691839151,-151.0,0.00011,2]
[380332440,1755691839161,-174.739972,0.00011,2]
[380332441,1755691839170,-151.0,0.00011,2]
[380332442,1755691839180,-151.0,0.00011,2]
[380332443,1755691839190,-151.0,0.00011,2]
[380332444,1755691839199,-151.0,0.00011,2]
[380332445,1755691839209,-151.0,0.00011,2]
[380332446,1755691839219,-151.0,0.00011,2]
[380332447,1755691839229,-265.070583,0.00011,2]
[380332448,1755691839239,-538.24,0.00011,2]
[380332449,1755691839248,-151.0,0.00011,2]
[380332450,1755691839257,-151.0,0.00011,2]
[380332451,1755691839267,-151.0,0.00011,2]
[380332452,1755691839278,-151.0,0.00011,2]
[380332453,1755691839288,-151.0,0.00011,2]
[380332454,1755691839297,-151.0,0.00011,2]
[380332455,1755691839307,-182.521038,0.00011,2]
[380332456,1755691839316,-157.492832,0.00011,2]
[380332457,1755691839326,-157.492832,0.00011,2]
[380332458,1755691839336,-157.492832,0.00011,2]
[380332459,1755691839345,-157.492832,0.00011,2]
[380332460,1755691839354,-157.492832,0.00011,2]
[380332461,1755691839363,-157.492832,0.00011,2]
[380332462,1755691839373,-157.492832,0.00011,2]
[380332463,1755691839383,-157.492832,0.00011,2]
[380332464,1755691839392,-157.492832,0.00011,2]
[380332465,1755691839401,-157.492832,0.00011,2]
[380332466,1755691839411,-157.492832,0.00011,2]
[380332467,1755691839420,-157.492832,0.00011,2]
[380332468,1755691839429,-157.492832,0.00011,2]
[380332469,1755691839439,-157.492832,0.00011,2]
[380332470,1755691839448,-157.492832,0.00011,2]
[380332471,1755691839457,-157.492832,0.00011,2]
[380332472,1755691839468,-157.492832,0.00011,2]
[380332473,1755691839477,-157.492832,0.00011,2]
[380332474,1755691839487,-157.492832,0.00011,2]
[380332475,1755691839496,-151.0,0.00011,2]
[380332476,1755691839506,-157.492838,0.00011,2]
[380332477,1755691839515,-151.0,0.00011,2]
[380332478,1755691839525,-151.0,0.00011,2]
[380332479,1755691839534,-151.0,0.00011,2]
[380332480,1755691839544,-152.399842,0.00011,2]
[380332481,1755691839553,-151.0,0.00011,2]
[380332482,1755691839563,-151.0,0.00011,2]
[380332483,1755691839572,-151.0,0.00011,2]
[380332484,1755691839582,-151.0,0.00011,2]
[380332485,1755691839591,-151.0,0.00011,2]
[380332486,1755691839601,-151.0,0.00011,2]
[380332487,1755691839610,-151.0,0.00011,2]
[380332488,1755691839620,-151.0,0.00011,2]
[380332489,1755691839630,-151.0,0.00011,2]
[380332490,1755691839640,-151.0,0.00011,2]
[380332491,1755691839649,-151.0,0.00011,2]
[380332492,1755691839659,-151.0,0.00011,2]
[380332493,1755691839669,-219.864224,0.00011,2]
[380332494,1755691839678,-151.0,0.00011,2]
[380332495,1755691839687,-151.0,0.00011,2]
[380332496,1755691839696,-151.0,0.00011,2]
[380332497,1755691839706,-151.0,0.00011,2]
[380332498,1755691839715,-151.0,0.00011,2]
[380332499,1755691839729,-151.0,0.00011,2]
[380332500,1755691839738,-151.0,0.00011,2]
[380332501,1755691839748,-151.0,0.00011,2]
[380332502,1755691839757,-280.657597,0.00011,2]
[380332503,1755691839768,-151.0,0.00011,2]
[380332504,1755691839777,-151.0,0.00011,2]
[380332505,1755691839788,-151.0,0.00011,2]
[380332506,1755691839806,-151.0,0.00011,2]
[380332507,1755691839820,-151.0,0.00011,2]
[380332508,1755691839837,-151.0,0.00011,2]
[380332509,1755691839849,-151.0,0.00011,2]
[380332510,1755691839861,-151.471231,0.00011,2]
[380332511,1755691839874,-243.253298,0.00011,2]
[380332512,1755691839885,-151.0,0.00011,2]
[380332513,1755691839898,-151.0,0.00011,2]
[380332514,1755691839912,-151.0,0.00011,2]
[380332515,1755691839924,-151.0,0.00011,2]
[380332516,1755691839936,-151.0,0.00011,2]
[380332517,1755691839948,-151.0,0.00011,2]
[380332518,1755691839961,-188.785324,0.00011,2]
[380332519,1755691839973,-151.0,0.00011,2]
[380332520,1755691839985,-188.785324,0.00011,2]
[380332521,1755691839996,-151.0,0.00011,2]
[380332522,1755691840007,-188.785324,0.00011,2]
[380332523,1755691840018,-188.785324,0.00011,2]
[380332524,1755691840028,-188.785324,0.00011,2]
[380332525,1755691840039,-188.785324,0.00011,2]
[380332526,1755691840050,-188.785324,0.00011,2]
[380332527,1755691840060,-188.785324,0.00011,2]
[380332528,1755691840071,-188.785324,0.00011,2]
[380332530,1755691840082,-188.785324,0.00011,2]
[380332532,1755691840092,-188.785324,0.00011,2]
[380332533,1755691840102,-188.785324,0.00011,2]
[380332534,1755691840113,-151.0,0.00011,2]
[380332535,1755691840126,-151.0,0.00011,2]
[380332536,1755691840136,-151.0,0.00011,2]
[380332538,1755691840146,-188.785324,0.00011,2]
[380332539,1755691840156,-151.0,0.00011,2]
[380332540,1755691840166,-188.785324,0.00011,2]
[380332541,1755691840175,-188.785324,0.00011,2]
[380332542,1755691840186,-151.920586,0.00011,2]
[380332543,1755691840196,-188.785324,0.00011,2]
[380332544,1755691840206,-188.785324,0.00011,2]
[380332545,1755691840217,-188.785324,0.00011,2]
[380332546,1755691840228,-188.785324,0.00011,2]
[380332547,1755691840238,-188.78533,0.00011,2]
[380332548,1755691840252,-151.0,0.00011,2]
[380332549,1755691840263,-151.284026,0.00011,2]
[380332550,1755691840274,-151.0,0.00011,2]
[380332551,1755691840284,-151.0,0.00011,2]
[380332552,1755691840294,-151.0,0.00011,2]
[380332553,1755691840304,-151.0,0.00011,2]
[380332554,1755691840314,-151.0,0.00011,2]
[380332555,1755691840324,-151.0,0.00011,2]
[380332556,1755691840334,-151.0,0.00011,2]
[380332557,1755691840344,-151.0,0.00011,2]
[380332558,1755691840353,-151.0,0.00011,2]
[380332559,1755691840363,-151.0,0.00011,2]
[380332560,1755691840374,-151.0,0.00011,2]
[380332561,1755691840384,-151.0,0.00011,2]
[380332562,1755691840393,-8932.51,0.00011,2]
[380332563,1755691840403,-238.58608455,0.00011,2]
[380332564,1755691840412,-261.258607,0.00011,2]
[380332565,1755691840421,-261.258607,0.00011,2]
[380332566,1755691840431,-261.258607,0.00011,2]
[380332567,1755691840440,-261.258607,0.00011,2]
[380332568,1755691840450,-261.258607,0.00011,2]
[380332569,1755691840459,-261.258607,0.00011,2]
[380332570,1755691840469,-261.258607,0.00011,2]
[380332571,1755691840479,-261.258607,0.00011,2]
[380332572,1755691840489,-261.258607,0.00011,2]
[380332573,1755691840498,-261.258607,0.00011,2]
[380332574,1755691840508,-261.258607,0.00011,2]
[380332575,1755691840518,-261.258607,0.00011,2]
[380332576,1755691840527,-261.258607,0.00011,2]
[380332577,1755691840537,-261.258607,0.00011,2]
[380332578,1755691840547,-261.258607,0.00011,2]
[380332579,1755691840556,-261.258607,0.00011,2]
[380332580,1755691840565,-261.258607,0.00011,2]
[380332581,1755691840575,-261.258607,0.00011,2]
[380332582,1755691840584,-261.258607,0.00011,2]
[380332583,1755691840594,-151.0,0.00011,2]
[380332584,1755691840603,-261.258611,0.00011,2]
[380332585,1755691840613,-151.0,0.00011,2]
[380332586,1755691840625,-151.0,0.00011,2]
[380332587,1755691840634,-151.0,0.00011,2]
[380332588,1755691840644,-151.0,0.00011,2]
[380332590,1755691840654,-231.364099,0.00011,2]
[380332591,1755691840664,-151.0,0.00011,2]
[380332593,1755691840673,-231.364099,0.00011,2]
[380332595,1755691840683,-151.0,0.00011,2]
[380332597,1755691840693,-231.364099,0.00011,2]
[380332599,1755691840702,-151.0,0.00011,2]
[380332600,1755691840711,-231.364099,0.00011,2]
[380332601,1755691840721,-151.0,0.00011,2]
[380332602,1755691840734,-231.364099,0.00011,2]
[380332603,1755691840744,-151.0,0.00011,2]
[380332604,1755691840753,-231.364099,0.00011,2]
[380332605,1755691840763,-151.0,0.00011,2]
[380332606,1755691840772,-275.910648,0.00011,2]
[380332607,1755691840782,-231.364099,0.00011,2]
[380332608,1755691840791,-151.0,0.00011,2]
[380332609,1755691840801,-231.364099,0.00011,2]
[380332610,1755691840813,-151.0,0.00011,2]
[380332611,1755691840822,-231.364099,0.00011,2]
[380332612,1755691840832,-151.0,0.00011,2]
[380332613,1755691840841,-231.364099,0.00011,2]